[Event "Early-Titled-Tuesday-Blitz-October-17-2023"]
[Site "Chess.com"]
[Date "2023.10.17"]
[Round "7"]
[White "garicradomir"]
[Black "Kotofeyca"]
[Result "1-0"]
[WhiteElo "2317"]
[BlackElo "2413"]
[TimeControl "180+1"]
[EndTime "9:21:48 PDT"]
[Termination "garicradomir won on time"]

1. e4 {[%clk 0:03:00.9]} 1... c5 {[%clk 0:02:59.9]} 2. Nf3 {[%clk 0:03:00.2]}
2... d6 {[%clk 0:03:00.5]} 3. Be2 {[%clk 0:03:00]} 3... Nf6 {[%clk 0:02:59.7]}
4. c3 {[%clk 0:03:00.9]} 4... Nc6 {[%clk 0:02:58.2]} 5. d4 {[%clk 0:03:01.3]}
5... cxd4 {[%clk 0:02:57.7]} 6. cxd4 {[%clk 0:03:02.2]} 6... d5 {[%clk
0:02:58.1]} 7. e5 {[%clk 0:03:02.2]} 7... Ne4 {[%clk 0:02:58.2]} 8. Nbd2 {[%clk
0:03:02.6]} 8... Bf5 {[%clk 0:02:57.9]} 9. O-O {[%clk 0:03:01.2]} 9... e6 {[%clk
0:02:58]} 10. Nb3 {[%clk 0:02:56.8]} 10... Be7 {[%clk 0:02:51.1]} 11. Ne1 {[%clk
0:02:56.9]} 11... f6 {[%clk 0:02:41.7]} 12. f3 {[%clk 0:02:52.3]} 12... Ng5
{[%clk 0:02:41.6]} 13. Bxg5 {[%clk 0:02:47.9]} 13... fxg5 {[%clk 0:02:41.4]} 14.
Rc1 {[%clk 0:02:41.2]} 14... O-O {[%clk 0:02:40.9]} 15. Nd3 {[%clk 0:02:41.3]}
15... Rc8 {[%clk 0:02:31.7]} 16. Nf2 {[%clk 0:02:40.8]} 16... Nb4 {[%clk
0:02:26.4]} 17. a3 {[%clk 0:02:33.8]} 17... Nc2 {[%clk 0:02:12.5]} 18. Ng4
{[%clk 0:02:02.8]} 18... h5 {[%clk 0:01:59.1]} 19. Bd3 {[%clk 0:01:44.7]} 19...
hxg4 {[%clk 0:00:15.7]} 20. Bxf5 {[%clk 0:01:42.7]} 20... Rxf5 {[%clk
0:00:14.6]} 21. Rxc2 {[%clk 0:01:41.1]} 21... gxf3 {[%clk 0:00:14.8]} 22. Rxc8
{[%clk 0:01:32.9]} 22... Qxc8 {[%clk 0:00:14.9]} 23. Rxf3 {[%clk 0:01:33.1]}
23... Rxf3 {[%clk 0:00:14.4]} 24. Qxf3 {[%clk 0:01:34]} 24... Qc4 {[%clk
0:00:13.5]} 25. h3 {[%clk 0:01:20.7]} 25... Bd8 {[%clk 0:00:13.5]} 26. Qg4
{[%clk 0:01:10]} 26... Qxb3 {[%clk 0:00:12.4]} 27. Qxe6+ {[%clk 0:01:10.1]}
27... Kh7 {[%clk 0:00:12.6]} 28. Qf5+ {[%clk 0:01:06.7]} 28... Kh6 {[%clk
0:00:12.6]} 29. Qe6+ {[%clk 0:00:51.2]} 29... g6 {[%clk 0:00:10.4]} 30. Qg8
{[%clk 0:00:42.2]} 30... Qe3+ {[%clk 0:00:10.7]} 31. Kf1 {[%clk 0:00:35.5]}
31... Qf4+ {[%clk 0:00:09.8]} 32. Ke2 {[%clk 0:00:27.3]} 32... Qe4+ {[%clk
0:00:09.1]} 33. Kf1 {[%clk 0:00:27.1]} 33... Qf4+ {[%clk 0:00:07.7]} 34. Kg1
{[%clk 0:00:25.8]} 34... Bf6 {[%clk 0:00:05.8]} 35. exf6 {[%clk 0:00:18.3]}
35... Qxd4+ {[%clk 0:00:05.6]} 36. Kh1 {[%clk 0:00:18.1]} 36... Qxf6 {[%clk
0:00:05.1]} 37. Qxd5 {[%clk 0:00:15.3]} 37... Qxb2 {[%clk 0:00:05.1]} 38. Qc5
{[%clk 0:00:11]} 38... b6 {[%clk 0:00:03.2]} 39. Qf8+ {[%clk 0:00:10.2]} 39...
Qg7 {[%clk 0:00:04.1]} 40. Qf2 {[%clk 0:00:08.9]} 40... Kh7 {[%clk 0:00:04.2]}
41. Qf3 {[%clk 0:00:08.9]} 41... Qe7 {[%clk 0:00:04.5]} 42. Qb3 {[%clk
0:00:07.6]} 42... Kg7 {[%clk 0:00:04.7]} 43. Qc3+ {[%clk 0:00:07.5]} 43... Kf7
{[%clk 0:00:04.8]} 44. Qg3 {[%clk 0:00:06.1]} 44... Kf6 {[%clk 0:00:03.4]} 45.
Qf3+ {[%clk 0:00:06.1]} 45... Ke6 {[%clk 0:00:03.4]} 46. Qg4+ {[%clk 0:00:06.3]}
46... Kd6 {[%clk 0:00:03]} 47. Qb4+ {[%clk 0:00:06.5]} 47... Kd7 {[%clk
0:00:03.5]} 48. Qa4+ {[%clk 0:00:06.6]} 48... Kc8 {[%clk 0:00:03.4]} 49. Qc6+
{[%clk 0:00:06.2]} 49... Kb8 {[%clk 0:00:03.9]} 50. Qxg6 {[%clk 0:00:06.4]}
50... Kb7 {[%clk 0:00:03.4]} 51. Qf5 {[%clk 0:00:06.2]} 1-0

[Event "Early-Titled-Tuesday-Blitz-October-17-2023"]
[Site "Chess.com"]
[Date "2023.10.17"]
[Round "7"]
[White "Sokoloco"]
[Black "Emp3rador"]
[Result "1-0"]
[WhiteElo "2706"]
[BlackElo "2551"]
[TimeControl "180+1"]
[EndTime "9:21:49 PDT"]
[Termination "Sokoloco won by resignation"]

1. b3 {[%clk 0:03:00.9]} 1... Nf6 {[%clk 0:02:58]} 2. Bb2 {[%clk 0:03:00.4]}
2... d5 {[%clk 0:02:58.7]} 3. e3 {[%clk 0:03:00.2]} 3... Bg4 {[%clk 0:02:54.7]}
4. Be2 {[%clk 0:02:59.2]} 4... Bxe2 {[%clk 0:02:54.4]} 5. Qxe2 {[%clk
0:03:00.1]} 5... Nbd7 {[%clk 0:02:54.7]} 6. d4 {[%clk 0:03:00.2]} 6... e6 {[%clk
0:02:52]} 7. Nd2 {[%clk 0:03:00.6]} 7... Bd6 {[%clk 0:02:47.9]} 8. Ngf3 {[%clk
0:02:55.5]} 8... Qe7 {[%clk 0:02:46.6]} 9. Ne5 {[%clk 0:02:55.3]} 9... O-O
{[%clk 0:02:28.1]} 10. O-O {[%clk 0:02:55.1]} 10... Ba3 {[%clk 0:02:25]} 11.
Bxa3 {[%clk 0:02:44.2]} 11... Qxa3 {[%clk 0:02:24.6]} 12. f4 {[%clk 0:02:44.7]}
12... Rac8 {[%clk 0:02:18]} 13. c4 {[%clk 0:02:39.6]} 13... c5 {[%clk
0:02:10.7]} 14. Nxd7 {[%clk 0:02:35.9]} 14... Nxd7 {[%clk 0:02:06.9]} 15. cxd5
{[%clk 0:02:36.2]} 15... exd5 {[%clk 0:02:07]} 16. Nf3 {[%clk 0:02:35.6]} 16...
Rfe8 {[%clk 0:02:03.3]} 17. Rac1 {[%clk 0:02:22.4]} 17... cxd4 {[%clk 0:01:34]}
18. Rxc8 {[%clk 0:02:16.3]} 18... Rxc8 {[%clk 0:01:34.9]} 19. exd4 {[%clk
0:02:11.6]} 19... Nf6 {[%clk 0:01:28.5]} 20. Re1 {[%clk 0:01:56.2]} 20... h6
{[%clk 0:01:17.8]} 21. Ne5 {[%clk 0:01:33.5]} 21... Ne4 {[%clk 0:01:09.5]} 22.
Qh5 {[%clk 0:01:22.2]} 22... Rc7 {[%clk 0:00:19.2]} 23. Nf3 {[%clk 0:01:18.7]}
23... Nf6 {[%clk 0:00:17.8]} 24. Qe5 {[%clk 0:01:15.7]} 24... Rc2 {[%clk
0:00:16.5]} 25. Nh4 {[%clk 0:00:36.5]} 25... Qxa2 {[%clk 0:00:13.9]} 26. Qb8+
{[%clk 0:00:35.9]} 26... Kh7 {[%clk 0:00:13.8]} 27. Qxb7 {[%clk 0:00:36.8]}
27... Re2 {[%clk 0:00:07.9]} 28. Rf1 {[%clk 0:00:32.4]} 28... Qb2 {[%clk
0:00:06.3]} 29. Qxf7 {[%clk 0:00:31.3]} 29... Qxd4+ {[%clk 0:00:06.4]} 30. Kh1
{[%clk 0:00:32.1]} 30... Qf2 {[%clk 0:00:05]} 31. Rg1 {[%clk 0:00:20.4]} 31...
Re1 {[%clk 0:00:04.8]} 32. Nf3 {[%clk 0:00:16.4]} 32... Rxg1+ {[%clk 0:00:05]}
33. Nxg1 {[%clk 0:00:17.3]} 33... Qxf4 {[%clk 0:00:05.2]} 34. h3 {[%clk
0:00:09.2]} 34... d4 {[%clk 0:00:04.4]} 35. Nf3 {[%clk 0:00:08.3]} 35... d3
{[%clk 0:00:04.3]} 36. Qxa7 {[%clk 0:00:06.2]} 36... Ne4 {[%clk 0:00:04.6]} 37.
Qd7 {[%clk 0:00:03.2]} 37... d2 {[%clk 0:00:04.5]} 38. Qd3 {[%clk 0:00:03.2]}
38... Kh8 {[%clk 0:00:03.2]} 39. Kg1 {[%clk 0:00:03.4]} 39... h5 {[%clk
0:00:01.2]} 40. Qd8+ {[%clk 0:00:03.5]} 40... Kh7 {[%clk 0:00:01.3]} 41. Qd3
{[%clk 0:00:04.4]} 41... Kh8 {[%clk 0:00:01.5]} 42. b4 {[%clk 0:00:03.1]} 42...
Kh7 {[%clk 0:00:02.2]} 43. b5 {[%clk 0:00:03]} 43... Kh6 {[%clk 0:00:02.7]} 44.
b6 {[%clk 0:00:02.6]} 44... Ng3 {[%clk 0:00:01.7]} 45. Qxd2 {[%clk 0:00:02.6]}
45... Qxd2 {[%clk 0:00:01.8]} 46. Nxd2 {[%clk 0:00:03.5]} 46... Ne2+ {[%clk
0:00:02.4]} 47. Kf2 {[%clk 0:00:03.7]} 47... Nd4 {[%clk 0:00:03.3]} 48. b7
{[%clk 0:00:04.3]} 48... Nc6 {[%clk 0:00:03.6]} 49. Nc4 {[%clk 0:00:04]} 49...
Kg6 {[%clk 0:00:03.5]} 50. Ne5+ {[%clk 0:00:04.2]} 50... Nxe5 {[%clk 0:00:03.6]}
51. b8=Q {[%clk 0:00:04.7]} 1-0

[Event "Early-Titled-Tuesday-Blitz-October-17-2023"]
[Site "Chess.com"]
[Date "2023.10.17"]
[Round "7"]
[White "santosalberto1987"]
[Black "Wizard_97"]
[Result "0-1"]
[WhiteElo "2433"]
[BlackElo "2584"]
[TimeControl "180+1"]
[EndTime "9:21:54 PDT"]
[Termination "Wizard_97 won by resignation"]

1. e4 {[%clk 0:03:00.9]} 1... c5 {[%clk 0:02:58.1]} 2. Nf3 {[%clk 0:03:00.9]}
2... d6 {[%clk 0:02:57.9]} 3. Bb5+ {[%clk 0:03:00.6]} 3... Bd7 {[%clk
0:02:57.4]} 4. Bxd7+ {[%clk 0:03:00]} 4... Qxd7 {[%clk 0:02:58.3]} 5. c4 {[%clk
0:02:58.7]} 5... g6 {[%clk 0:02:57.5]} 6. Nc3 {[%clk 0:02:57.4]} 6... Bg7 {[%clk
0:02:58.1]} 7. d4 {[%clk 0:02:53.1]} 7... cxd4 {[%clk 0:02:57.1]} 8. Nxd4 {[%clk
0:02:54]} 8... Nf6 {[%clk 0:02:57.6]} 9. f3 {[%clk 0:02:53.7]} 9... O-O {[%clk
0:02:57.6]} 10. Be3 {[%clk 0:02:53.9]} 10... Rc8 {[%clk 0:02:57.9]} 11. b3
{[%clk 0:02:53.5]} 11... Nc6 {[%clk 0:02:58.2]} 12. Rc1 {[%clk 0:02:51]} 12...
a6 {[%clk 0:02:56.8]} 13. a4 {[%clk 0:02:49.9]} 13... Qd8 {[%clk 0:02:56.7]} 14.
Qd2 {[%clk 0:02:47.6]} 14... h5 {[%clk 0:02:56.9]} 15. O-O {[%clk 0:02:47]}
15... Ne5 {[%clk 0:02:56.3]} 16. h3 {[%clk 0:02:36.7]} 16... Qa5 {[%clk
0:02:39.9]} 17. Rfd1 {[%clk 0:02:33.8]} 17... Nc6 {[%clk 0:02:27.8]} 18. Kf2
{[%clk 0:01:49.2]} 18... Nd7 {[%clk 0:01:59]} 19. Nd5 {[%clk 0:01:42.5]} 19...
Qxd2+ {[%clk 0:01:55.1]} 20. Rxd2 {[%clk 0:01:43.4]} 20... Kf8 {[%clk
0:01:51.1]} 21. Rcd1 {[%clk 0:01:33.7]} 21... Rab8 {[%clk 0:01:47.2]} 22. Nc2
{[%clk 0:01:21.9]} 22... b5 {[%clk 0:01:43.2]} 23. axb5 {[%clk 0:01:19.7]} 23...
axb5 {[%clk 0:01:44.1]} 24. cxb5 {[%clk 0:01:02.7]} 24... Rxb5 {[%clk 0:01:45]}
25. b4 {[%clk 0:01:02.6]} 25... Nde5 {[%clk 0:01:24.1]} 26. Nd4 {[%clk
0:00:58.6]} 26... Nxd4 {[%clk 0:01:17.2]} 27. Bxd4 {[%clk 0:00:59.5]} 27... Rc4
{[%clk 0:00:44]} 28. Ra2 {[%clk 0:00:21.6]} 28... Ng4+ {[%clk 0:00:17.3]} 29.
hxg4 {[%clk 0:00:21.7]} 29... Bxd4+ {[%clk 0:00:17.6]} 30. Kg3 {[%clk
0:00:21.9]} 30... hxg4 {[%clk 0:00:16.4]} 31. Kxg4 {[%clk 0:00:22.1]} 31... e6
{[%clk 0:00:15.5]} 32. Nf4 {[%clk 0:00:20.1]} 32... Rcxb4 {[%clk 0:00:13.8]} 33.
Ne2 {[%clk 0:00:20.4]} 33... Be5 {[%clk 0:00:13.6]} 34. Kh3 {[%clk 0:00:16.5]}
34... Rb6 {[%clk 0:00:12]} 35. Rad2 {[%clk 0:00:16.6]} 35... Ke7 {[%clk
0:00:09.8]} 36. Ra2 {[%clk 0:00:15.3]} 36... Bf6 {[%clk 0:00:09.1]} 37. Rad2
{[%clk 0:00:15.1]} 37... Be5 {[%clk 0:00:06.8]} 38. Ra2 {[%clk 0:00:15.3]} 38...
g5 {[%clk 0:00:07.3]} 39. Ra7+ {[%clk 0:00:14.6]} 39... Kf6 {[%clk 0:00:08]} 40.
Rd7 {[%clk 0:00:14.9]} 40... Rb2 {[%clk 0:00:08.3]} 41. Ng3 {[%clk 0:00:14.4]}
41... Ra6 {[%clk 0:00:08]} 42. Nh5+ {[%clk 0:00:13.8]} 42... Kg6 {[%clk
0:00:08.4]} 43. Ng3 {[%clk 0:00:12.1]} 43... Raa2 {[%clk 0:00:09]} 44. Rg1
{[%clk 0:00:12.1]} 44... Bd4 {[%clk 0:00:08.7]} 45. Rh1 {[%clk 0:00:12]} 45...
Rxg2 {[%clk 0:00:08.5]} 46. Nh5 {[%clk 0:00:10.9]} 46... Be5 {[%clk 0:00:07.5]}
47. f4 {[%clk 0:00:07.9]} 47... gxf4 {[%clk 0:00:06.6]} 48. Rxf7 {[%clk
0:00:05.4]} 48... Kxf7 {[%clk 0:00:06.1]} 49. Kh4 {[%clk 0:00:05.1]} 49... f3
{[%clk 0:00:06.5]} 0-1

[Event "Early-Titled-Tuesday-Blitz-October-17-2023"]
[Site "Chess.com"]
[Date "2023.10.17"]
[Round "7"]
[White "Msb2"]
[Black "SAInt_666"]
[Result "1-0"]
[WhiteElo "3061"]
[BlackElo "2769"]
[TimeControl "180+1"]
[EndTime "9:22:00 PDT"]
[Termination "Msb2 won on time"]

1. d4 {[%clk 0:03:00.9]} 1... Nf6 {[%clk 0:02:59.9]} 2. c4 {[%clk 0:03:01.4]}
2... e6 {[%clk 0:03:00.4]} 3. Nc3 {[%clk 0:03:02.1]} 3... Bb4 {[%clk 0:03:00.9]}
4. e3 {[%clk 0:03:02.7]} 4... O-O {[%clk 0:03:01.6]} 5. Bd2 {[%clk 0:03:03.4]}
5... c5 {[%clk 0:03:01.9]} 6. a3 {[%clk 0:03:03.6]} 6... Bxc3 {[%clk 0:03:02.4]}
7. Bxc3 {[%clk 0:03:04.5]} 7... Ne4 {[%clk 0:03:03.3]} 8. Ne2 {[%clk 0:03:05.3]}
8... b6 {[%clk 0:03:03.2]} 9. d5 {[%clk 0:03:05.6]} 9... Ba6 {[%clk 0:02:58.5]}
10. Qd3 {[%clk 0:03:05.5]} 10... Nxc3 {[%clk 0:02:52.4]} 11. Nxc3 {[%clk
0:03:05.5]} 11... e5 {[%clk 0:02:50.9]} 12. d6 {[%clk 0:03:03.6]} 12... Nc6
{[%clk 0:02:46.7]} 13. Qf5 {[%clk 0:02:57.4]} 13... g6 {[%clk 0:02:42.6]} 14.
Qf3 {[%clk 0:02:49.3]} 14... f5 {[%clk 0:02:42.4]} 15. Qd5+ {[%clk 0:02:45.6]}
15... Kh8 {[%clk 0:02:40.1]} 16. Be2 {[%clk 0:02:46.2]} 16... Qf6 {[%clk
0:02:38.5]} 17. O-O {[%clk 0:02:45.1]} 17... Rae8 {[%clk 0:02:34]} 18. b4 {[%clk
0:02:33.6]} 18... e4 {[%clk 0:02:04.5]} 19. Qd2 {[%clk 0:02:31.7]} 19... Ne5
{[%clk 0:01:57]} 20. bxc5 {[%clk 0:02:22.9]} 20... bxc5 {[%clk 0:01:54.9]} 21.
Nd5 {[%clk 0:02:19.7]} 21... Qxd6 {[%clk 0:01:46.5]} 22. Qc3 {[%clk 0:02:20.1]}
22... Kg8 {[%clk 0:01:46]} 23. Rfd1 {[%clk 0:02:19]} 23... Nc6 {[%clk
0:01:40.1]} 24. Rab1 {[%clk 0:02:08.1]} 24... Qe5 {[%clk 0:01:40.1]} 25. Qxe5
{[%clk 0:02:03.3]} 25... Rxe5 {[%clk 0:01:41]} 26. Nc7 {[%clk 0:01:38.1]} 26...
Bc8 {[%clk 0:01:35.2]} 27. Nb5 {[%clk 0:01:38.6]} 27... Re7 {[%clk 0:01:16.5]}
28. Nd6 {[%clk 0:01:38.7]} 28... Ba6 {[%clk 0:01:15.8]} 29. h4 {[%clk 0:01:27]}
29... Rb8 {[%clk 0:01:15]} 30. Rxb8+ {[%clk 0:00:56.8]} 30... Nxb8 {[%clk
0:01:15.9]} 31. Nb5 {[%clk 0:00:57.7]} 31... Nc6 {[%clk 0:00:39.6]} 32. Rd5
{[%clk 0:00:57.8]} 32... Kg7 {[%clk 0:00:30.5]} 33. Rxc5 {[%clk 0:00:56.2]}
33... Re5 {[%clk 0:00:30.7]} 34. Rxe5 {[%clk 0:00:54.7]} 34... Nxe5 {[%clk
0:00:31.6]} 35. Nxa7 {[%clk 0:00:37.9]} 35... d5 {[%clk 0:00:31.5]} 36. Nb5
{[%clk 0:00:27.9]} 36... dxc4 {[%clk 0:00:31.6]} 37. Nc3 {[%clk 0:00:27.6]}
37... Kf7 {[%clk 0:00:23.1]} 38. f4 {[%clk 0:00:27.9]} 38... exf3 {[%clk
0:00:21.4]} 39. gxf3 {[%clk 0:00:28.8]} 39... Ke6 {[%clk 0:00:19.8]} 40. f4
{[%clk 0:00:29.5]} 40... Nd7 {[%clk 0:00:19.5]} 41. e4 {[%clk 0:00:24.3]} 41...
fxe4 {[%clk 0:00:18.6]} 42. Bg4+ {[%clk 0:00:24.6]} 42... Ke7 {[%clk 0:00:16.7]}
43. Bxd7 {[%clk 0:00:21.9]} 43... Kxd7 {[%clk 0:00:17.6]} 44. Kf2 {[%clk
0:00:22.8]} 44... Bb7 {[%clk 0:00:10.9]} 45. Ke3 {[%clk 0:00:22.1]} 45... Kd6
{[%clk 0:00:10.4]} 46. Nxe4+ {[%clk 0:00:16]} 46... Kd5 {[%clk 0:00:03.2]} 47.
Nc3+ {[%clk 0:00:15]} 47... Kc5 {[%clk 0:00:03.5]} 48. Ne4+ {[%clk 0:00:13.4]}
48... Kb6 {[%clk 0:00:02.4]} 49. Nd6 {[%clk 0:00:12]} 49... Bd5 {[%clk
0:00:02.7]} 50. Kd4 {[%clk 0:00:12.5]} 50... Be6 {[%clk 0:00:02.5]} 51. Nxc4+
{[%clk 0:00:12.7]} 51... Kb5 {[%clk 0:00:03.4]} 52. Nb2 {[%clk 0:00:09.1]} 52...
Bf7 {[%clk 0:00:01.8]} 53. Kc3 {[%clk 0:00:08.9]} 53... Be6 {[%clk 0:00:01.3]}
54. Nd3 {[%clk 0:00:09.5]} 1-0

[Event "Early-Titled-Tuesday-Blitz-October-17-2023"]
[Site "Chess.com"]
[Date "2023.10.17"]
[Round "7"]
[White "kingofthenil"]
[Black "frederiksvane"]
[Result "1-0"]
[WhiteElo "2741"]
[BlackElo "2892"]
[TimeControl "180+1"]
[EndTime "9:22:01 PDT"]
[Termination "kingofthenil won by checkmate"]

1. Nf3 {[%clk 0:02:59.5]} 1... d5 {[%clk 0:02:59.2]} 2. e3 {[%clk 0:02:59.3]}
2... Bg4 {[%clk 0:02:57.7]} 3. c4 {[%clk 0:02:59.3]} 3... e6 {[%clk 0:02:53.2]}
4. Qb3 {[%clk 0:02:59]} 4... Bxf3 {[%clk 0:02:51.5]} 5. Qxb7 {[%clk 0:02:54.7]}
5... Nd7 {[%clk 0:02:51.6]} 6. gxf3 {[%clk 0:02:54.5]} 6... Ngf6 {[%clk
0:02:52.4]} 7. Nc3 {[%clk 0:02:45.6]} 7... Rb8 {[%clk 0:02:47.2]} 8. Qc6 {[%clk
0:02:40.9]} 8... Bd6 {[%clk 0:02:38.4]} 9. cxd5 {[%clk 0:02:40]} 9... exd5
{[%clk 0:02:37.4]} 10. Nxd5 {[%clk 0:02:36.1]} 10... O-O {[%clk 0:02:37.8]} 11.
f4 {[%clk 0:02:32.3]} 11... Ne4 {[%clk 0:02:30.9]} 12. Bg2 {[%clk 0:02:26.5]}
12... Nec5 {[%clk 0:02:22.3]} 13. O-O {[%clk 0:02:20.3]} 13... Rb7 {[%clk
0:01:48.9]} 14. Nc3 {[%clk 0:02:11.3]} 14... Rb6 {[%clk 0:01:49.1]} 15. Qf3
{[%clk 0:02:08.3]} 15... Nd3 {[%clk 0:01:49.1]} 16. Na4 {[%clk 0:01:43.5]} 16...
Rb4 {[%clk 0:01:29.8]} 17. b3 {[%clk 0:01:42.7]} 17... Nxf4 {[%clk 0:01:10.3]}
18. exf4 {[%clk 0:01:01.3]} 18... Rxf4 {[%clk 0:01:10.9]} 19. Qc3 {[%clk
0:00:59.5]} 19... Be5 {[%clk 0:01:08.3]} 20. d4 {[%clk 0:00:59.3]} 20... Bxd4
{[%clk 0:01:08.1]} 21. Bxf4 {[%clk 0:00:59.2]} 21... Bxc3 {[%clk 0:01:08]} 22.
Nxc3 {[%clk 0:01:00.1]} 22... c6 {[%clk 0:01:00.3]} 23. Bg3 {[%clk 0:00:59]}
23... Nf6 {[%clk 0:00:56.7]} 24. Rad1 {[%clk 0:00:57.7]} 24... Qa5 {[%clk
0:00:56.4]} 25. Na4 {[%clk 0:00:57.7]} 25... h5 {[%clk 0:00:54.8]} 26. Rfe1
{[%clk 0:00:56.4]} 26... Rd8 {[%clk 0:00:46]} 27. Bxc6 {[%clk 0:00:50.4]} 27...
Rxd1 {[%clk 0:00:45.4]} 28. Rxd1 {[%clk 0:00:50.4]} 28... Qb4 {[%clk 0:00:40.7]}
29. h4 {[%clk 0:00:47.7]} 29... Ne4 {[%clk 0:00:35.8]} 30. Bxe4 {[%clk
0:00:36.3]} 30... Qxe4 {[%clk 0:00:35.9]} 31. Nc3 {[%clk 0:00:34.6]} 31... Qc2
{[%clk 0:00:34.3]} 32. Rd8+ {[%clk 0:00:33.6]} 32... Kh7 {[%clk 0:00:34.8]} 33.
Nd5 {[%clk 0:00:29.5]} 33... Qxa2 {[%clk 0:00:26.3]} 34. Rd7 {[%clk 0:00:29.8]}
34... Qxb3 {[%clk 0:00:25.7]} 35. Nf4 {[%clk 0:00:29.5]} 35... a5 {[%clk
0:00:24.1]} 36. Nh3 {[%clk 0:00:26.7]} 36... f6 {[%clk 0:00:11]} 37. Nf4 {[%clk
0:00:26.6]} 37... Kh6 {[%clk 0:00:06.2]} 38. Rd8 {[%clk 0:00:17.5]} 38... Kh7
{[%clk 0:00:05.5]} 39. Rd7 {[%clk 0:00:15.4]} 39... Qf3 {[%clk 0:00:05]} 40. Ne6
{[%clk 0:00:13.6]} 40... Kg6 {[%clk 0:00:04.2]} 41. Rxg7+ {[%clk 0:00:12.9]}
41... Kh6 {[%clk 0:00:04.8]} 42. Bf4+ {[%clk 0:00:12.8]} 42... Qxf4 {[%clk
0:00:05.3]} 43. Nxf4 {[%clk 0:00:12.1]} 43... Kxg7 {[%clk 0:00:06.2]} 44. Ne6+
{[%clk 0:00:11.5]} 44... Kg6 {[%clk 0:00:06.4]} 45. Nc5 {[%clk 0:00:12.4]} 45...
Kf5 {[%clk 0:00:06.4]} 46. Kg2 {[%clk 0:00:12]} 46... Kg4 {[%clk 0:00:06.8]} 47.
Nd7 {[%clk 0:00:02.6]} 47... f5 {[%clk 0:00:05.4]} 48. Ne5+ {[%clk 0:00:01.9]}
48... Kf4 {[%clk 0:00:03.8]} 49. Nc4 {[%clk 0:00:01.8]} 49... a4 {[%clk
0:00:04.1]} 50. f3 {[%clk 0:00:02.2]} 50... a3 {[%clk 0:00:02]} 51. Nxa3 {[%clk
0:00:02.9]} 51... Ke3 {[%clk 0:00:02.9]} 52. Nc4+ {[%clk 0:00:03]} 52... Kf4
{[%clk 0:00:03.8]} 53. Nd2 {[%clk 0:00:02.9]} 53... Ke3 {[%clk 0:00:04.2]} 54.
Nf1+ {[%clk 0:00:03.8]} 54... Kf4 {[%clk 0:00:05.1]} 55. Kf2 {[%clk 0:00:03.9]}
55... Ke5 {[%clk 0:00:05.4]} 56. Ke3 {[%clk 0:00:04.8]} 56... Kd5 {[%clk
0:00:05.5]} 57. Kf4 {[%clk 0:00:05]} 57... Kd4 {[%clk 0:00:06.4]} 58. Ng3 {[%clk
0:00:05.1]} 58... Kd3 {[%clk 0:00:07.3]} 59. Nxh5 {[%clk 0:00:06]} 59... Ke2
{[%clk 0:00:08.2]} 60. Ng3+ {[%clk 0:00:06.9]} 60... Kf2 {[%clk 0:00:09.1]} 61.
Nxf5 {[%clk 0:00:07.8]} 61... Kg2 {[%clk 0:00:10]} 62. h5 {[%clk 0:00:08.5]}
62... Kh3 {[%clk 0:00:10.9]} 63. h6 {[%clk 0:00:09.4]} 63... Kg2 {[%clk
0:00:11.8]} 64. h7 {[%clk 0:00:10.3]} 64... Kg1 {[%clk 0:00:12.7]} 65. h8=Q
{[%clk 0:00:11.2]} 65... Kf2 {[%clk 0:00:13.6]} 66. Qh2+ {[%clk 0:00:11.5]}
66... Ke1 {[%clk 0:00:14]} 67. Ke3 {[%clk 0:00:11.6]} 67... Kd1 {[%clk
0:00:14.9]} 68. Qd2# {[%clk 0:00:11.1]} 1-0

[Event "Early-Titled-Tuesday-Blitz-October-17-2023"]
[Site "Chess.com"]
[Date "2023.10.17"]
[Round "7"]
[White "MdChess1734"]
[Black "invisible_s0ul"]
[Result "1-0"]
[WhiteElo "2419"]
[BlackElo "2278"]
[TimeControl "180+1"]
[EndTime "9:22:06 PDT"]
[Termination "MdChess1734 won by resignation"]

1. e4 {[%clk 0:02:39.1]} 1... c5 {[%clk 0:03:00.1]} 2. Nf3 {[%clk 0:02:38.9]}
2... d6 {[%clk 0:02:55.2]} 3. d4 {[%clk 0:02:38.6]} 3... cxd4 {[%clk 0:02:56.1]}
4. Nxd4 {[%clk 0:02:38.7]} 4... Nf6 {[%clk 0:02:56.4]} 5. Nc3 {[%clk 0:02:38.8]}
5... a6 {[%clk 0:02:56.8]} 6. Bg5 {[%clk 0:02:39.3]} 6... e6 {[%clk 0:02:57.1]}
7. f4 {[%clk 0:02:39.7]} 7... Be7 {[%clk 0:02:46.9]} 8. Qf3 {[%clk 0:02:39.4]}
8... Qc7 {[%clk 0:02:46.9]} 9. O-O-O {[%clk 0:02:38.3]} 9... Nbd7 {[%clk
0:02:42.9]} 10. g4 {[%clk 0:02:37.6]} 10... b5 {[%clk 0:02:41.5]} 11. Bxf6
{[%clk 0:02:37.3]} 11... Nxf6 {[%clk 0:02:41.7]} 12. g5 {[%clk 0:02:37.9]} 12...
Nd7 {[%clk 0:02:41.6]} 13. f5 {[%clk 0:02:37.4]} 13... O-O {[%clk 0:02:42.2]}
14. Rg1 {[%clk 0:02:26.8]} 14... Ne5 {[%clk 0:02:13.1]} 15. Qf2 {[%clk
0:02:16.7]} 15... b4 {[%clk 0:02:07.7]} 16. Nce2 {[%clk 0:02:13.8]} 16... Bb7
{[%clk 0:01:56.9]} 17. f6 {[%clk 0:02:08.3]} 17... Bd8 {[%clk 0:01:50.5]} 18.
Nf4 {[%clk 0:02:05.3]} 18... Bxe4 {[%clk 0:01:43]} 19. Bg2 {[%clk 0:01:57.3]}
19... Bxg2 {[%clk 0:01:33.7]} 20. Qxg2 {[%clk 0:01:53.5]} 20... Rc8 {[%clk
0:01:22.1]} 21. fxg7 {[%clk 0:01:51.4]} 21... Re8 {[%clk 0:01:21.6]} 22. h4
{[%clk 0:01:48.8]} 22... Nc4 {[%clk 0:01:09.5]} 23. Qf2 {[%clk 0:01:12.4]} 23...
Qa5 {[%clk 0:00:36.1]} 24. Kb1 {[%clk 0:00:52.4]} 24... e5 {[%clk 0:00:24.3]}
25. Nb3 {[%clk 0:00:21.8]} 25... Qb6 {[%clk 0:00:16.5]} 26. Qe2 {[%clk
0:00:19.6]} 26... Qe3 {[%clk 0:00:15.9]} 27. Qxe3 {[%clk 0:00:10.4]} 27... Nxe3
{[%clk 0:00:16.8]} 28. Nh5 {[%clk 0:00:10.5]} 28... Nxd1 {[%clk 0:00:17]} 29.
Rxd1 {[%clk 0:00:10.4]} 29... Bc7 {[%clk 0:00:12.6]} 30. Nf6+ {[%clk 0:00:07.6]}
30... Kxg7 {[%clk 0:00:13.1]} 31. Nxe8+ {[%clk 0:00:08.1]} 31... Rxe8 {[%clk
0:00:13.7]} 32. Nd2 {[%clk 0:00:07.7]} 32... d5 {[%clk 0:00:12.5]} 33. Nf1
{[%clk 0:00:07.5]} 33... d4 {[%clk 0:00:12.1]} 34. Ng3 {[%clk 0:00:07.5]} 34...
Kg6 {[%clk 0:00:04.6]} 35. Ne4 {[%clk 0:00:07.8]} 35... Re6 {[%clk 0:00:03.9]}
36. Rf1 {[%clk 0:00:07.2]} 36... Kh5 {[%clk 0:00:03.6]} 37. Rxf7 {[%clk
0:00:03.2]} 37... Bb6 {[%clk 0:00:03.5]} 38. Rxh7+ {[%clk 0:00:02.6]} 38... Kg4
{[%clk 0:00:04.2]} 39. Nf6+ {[%clk 0:00:01.4]} 39... Kh3 {[%clk 0:00:04]} 40.
Kc1 {[%clk 0:00:02.1]} 40... e4 {[%clk 0:00:04.6]} 41. Kd2 {[%clk 0:00:02.8]}
41... e3+ {[%clk 0:00:05.1]} 42. Ke2 {[%clk 0:00:03.5]} 42... Bc7 {[%clk
0:00:04.6]} 43. Nd5 {[%clk 0:00:04]} 43... Bg3 {[%clk 0:00:03.8]} 44. h5 {[%clk
0:00:03.1]} 44... Kg4 {[%clk 0:00:03.5]} 45. g6 {[%clk 0:00:03.5]} 45... Re5
{[%clk 0:00:03.6]} 46. g7 {[%clk 0:00:03.7]} 46... Rg5 {[%clk 0:00:03.2]} 47.
Nf6+ {[%clk 0:00:04.2]} 47... Kh4 {[%clk 0:00:03.3]} 48. g8=Q {[%clk 0:00:04.6]}
48... Rxg8 {[%clk 0:00:04]} 49. Nxg8 {[%clk 0:00:05.3]} 49... Kh3 {[%clk
0:00:04.4]} 50. h6 {[%clk 0:00:05.9]} 50... Be5 {[%clk 0:00:04.7]} 51. Rf7
{[%clk 0:00:06.2]} 51... a5 {[%clk 0:00:03.7]} 52. h7 {[%clk 0:00:06.6]} 52...
a4 {[%clk 0:00:03.5]} 53. Nf6 {[%clk 0:00:07.2]} 1-0